fUSD/lending_fUSD_20241001
["ID","MTS","AMOUNT","RATE_DAILY","PERIOD"]
[339639454,1727786966390,-10406.51072391,0.000399,120]
[339639455,1727786966415,-2672.35632827,0.000399,120]
[339639456,1727786966445,-1000.0,0.000399,120]
[339639457,1727786966471,-3001.01565983,0.000399,120]
[339639458,1727786966495,-3133.52,0.00039901,30]
[339639459,1727786966520,-437.77324351,0.0003991,120]
[339639460,1727786966545,-5000.0,0.00039912,30]
[339639461,1727786966570,-5000.0,0.00039919,30]
[339639462,1727786966595,-3063.1,0.00039936,30]
[339639463,1727786966620,-2798.37,0.00039951,30]
[339639464,1727786966644,-20563.38480372,0.0003996,31]
[339639465,1727786966669,-676904.53557939,0.0003996,31]
[339639469,1727786970854,-999.0,0.00032876,120]
[339639470,1727786970880,-999.0,0.00033972,120]
[339639471,1727786970909,-999.0,0.00035068,120]
[339639472,1727786970936,-999.0,0.00036164,120]
[339639473,1727786970962,-999.0,0.0003726,120]
[339639474,1727786970989,-999.0,0.00038356,120]
[339639475,1727786971016,-562602.51200581,0.0003996,31]
[339639476,1727786971042,-2372.72,0.00039983,30]
[339639477,1727786971069,-411.0,0.00039986,90]
[339639478,1727786971096,-10098.02101685,0.0003999,120]
[339639479,1727786971120,-223.42,0.0003999,120]
[339639480,1727786971144,-411.0,0.00039996,90]
[339639481,1727786971168,-2739.58544869,0.00039999,120]
[339639482,1727786971191,-200.0,0.00039999,30]
[339639483,1727786971220,-50000.0,0.0004,30]
[339639484,1727786971245,-50000.0,0.0004,40]
[339639485,1727786971270,-287.01804406,0.0004,120]
[339639486,1727786971293,-6293.41778982,0.0004,30]
[339639487,1727786971319,-45637.51933496,0.0004,30]
[339639488,1727786971343,-150.0,0.0004,120]
[339639489,1727786971369,-24609.37860796,0.0004,120]
[339639490,1727786971396,-1000000.0,0.0004,120]
[339639491,1727786971421,-1000000.0,0.0004,120]
[339639492,1727786971447,-1000000.0,0.0004,120]
[339639493,1727786971474,-1000000.0,0.0004,120]
[339639494,1727786971501,-292.14756054,0.0004,120]
[339639495,1727786971525,-2837.31,0.0004,120]
[339639496,1727786971551,-167.16699393,0.0004,30]
[339639497,1727786971578,-323.0297464,0.0004,120]
[339639498,1727786971605,-200.0,0.0004,120]
[339639499,1727786971629,-160.45,0.0004,120]
[339639500,1727786971652,-701.11441016,0.0004,120]
[339639501,1727786971822,-1000.0,0.0004,120]
[339639502,1727786971847,-280.8393842,0.0004,30]
[339639503,1727786971871,-1757.48060155,0.0004,30]
[339639504,1727786971896,-900.0,0.0004,120]
[339639505,1727786971920,-477.12749073,0.0004,30]
[339639506,1727786971951,-2263.94744214,0.0004,120]
[339639507,1727786971975,-400.00538233,0.0004,30]
[339639508,1727786972002,-1487.04476706,0.0004,30]
[339639509,1727786972027,-1721.51396531,0.0004,120]
[339639510,1727786972051,-1171.09838543,0.0004,120]
[339639511,1727786972076,-586.04312388,0.0004,120]
[339639512,1727786972100,-1167.96425595,0.0004,120]
[339639513,1727786972123,-1050.74981146,0.0004,32]
[339639514,1727786972148,-260.97997294,0.0004,30]
[339639515,1727786972172,-470.0584233,0.0004,120]
[339639516,1727786972199,-1322.05366328,0.0004,120]
[339639517,1727786972224,-10639.9110422,0.0004,120]
[339639518,1727786972249,-580.0,0.0004,30]
[339639519,1727786972273,-290.0604,0.0004,120]
[339639520,1727786972298,-100000.0,0.0004,120]
[339639521,1727786972322,-500.0,0.0004,120]
[339639522,1727786972346,-162.62796234,0.0004,120]
[339639523,1727786972370,-493.44689489,0.0004,120]
[339639524,1727786972394,-1800.0,0.0004,41]
[339639525,1727786972420,-1111.49993539,0.0004,120]
[339639526,1727786972446,-4000.0,0.0004,120]
[339639527,1727786972472,-200.0,0.0004,120]
[339639528,1727786972497,-314.33774293,0.0004,120]
[339639529,1727786972525,-96880.39839351,0.0004,60]
[339639533,1727786982455,-150.0,0.00028964,120]
[339639534,1727786982510,-2500.0,0.00039007,30]
[339639535,1727786982534,-271.423,0.00039199,30]
[339639536,1727786982564,-999.0,0.00039452,120]
[339639537,1727786982591,-2500.0,0.00039606,30]
[339639538,1727786982618,-249955.20289005,0.0003996,30]
[339639539,1727786982644,-106673.61420373,0.0004,60]
[339639540,1727786982668,-2438.38059463,0.0004,120]
[339639541,1727786982694,-5150.68175932,0.0004,120]
[339639542,1727786982730,-1626.40569643,0.0004,120]
[339639543,1727786982754,-389.73237,0.0004,120]
[339639544,1727786982779,-295.84717035,0.0004,120]
[339639545,1727786982804,-617.61037613,0.0004,120]
[339639546,1727786982828,-220.76,0.0004,120]
[339639547,1727786982853,-3136.22,0.0004,120]
[339639548,1727786982877,-5935.45998141,0.0004,120]
[339639549,1727786982903,-9621.0,0.0004,120]
[339639550,1727786982927,-166455.04374417,0.0004,120]
[339639551,1727786982953,-2500.0,0.0004,120]
[339639552,1727786982978,-157.43,0.0004,60]
[339639553,1727786983003,-156.162689,0.0004,43]
[339639554,1727786983029,-250.0,0.0004,30]
[339639555,1727786983053,-767.6711495,0.0004002,120]
[339639556,1727786983077,-151.0,0.00040027,120]
[339639557,1727786983102,-12977.59,0.00040055,30]
[339639558,1727786983126,-12977.59,0.00040055,30]
[339639559,1727786983154,-512.51864122,0.000401,120]
[339639560,1727786983179,-5000.0,0.000401,120]
[339639561,1727786983205,-151.0,0.00040137,120]
[339639562,1727786983230,-11908.00536,0.00040208,30]
[339639563,1727786983256,-2000000.0,0.000404,30]
[339639564,1727786983282,-11908.00536,0.00040408,30]
[339639565,1727786983307,-1000000.0,0.000405,120]
[339639566,1727786983333,-1000000.0,0.000405,120]
[339639567,1727786983360,-381646.64501406,0.000405,120]
[339639568,1727786986403,-316.8790314,0.00039037,30]
[339639569,1727786986428,-316.8790314,0.00039334,30]
[339639570,1727786986454,-316.8790314,0.000397,30]
[339639571,1727786986624,-618353.35498594,0.000405,120]
[339639572,1727786986651,-999.0,0.00040547,120]
[339639573,1727786986676,-11908.00536,0.00040608,30]
[339639574,1727786986703,-150.0,0.00040635,120]
[339639575,1727786986728,-1000000.0,0.0004075,120]
[339639576,1727786986753,-150.0,0.0004076,120]
[339639577,1727786986779,-11908.00536,0.00040808,30]
[339639578,1727786986803,-150.0,0.0004087,120]
[339639579,1727786986827,-300000.0,0.000409,30]
[339639580,1727786986853,-150.0,0.00040924,120]
[339639581,1727786986877,-150.0,0.00040952,120]
[339639582,1727786986903,-50000.0,0.00041,31]
[339639583,1727786986929,-50000.0,0.00041,41]
[339639584,1727786986954,-150.0,0.00041,120]
[339639585,1727786986978,-1000000.0,0.00041,120]
[339639586,1727786987002,-1000000.0,0.00041,120]
[339639587,1727786987026,-954980.99719986,0.00041,120]
[339639590,1727787001472,-316.8790317,0.00039781,30]
[339639591,1727787001504,-45019.00280014,0.00041,120]
[339639592,1727787001529,-1000000.0,0.00041,120]
[339639593,1727787001554,-1000000.0,0.00041,120]
[339639594,1727787001580,-1000.0,0.00041,120]
[339639595,1727787001604,-10000.0,0.00041,120]
[339639596,1727787001628,-1800.0,0.00041,42]
[339639597,1727787001654,-10000.0,0.00041,120]
[339639598,1727787001678,-150.0,0.00041048,120]
[339639599,1727787001703,-156.38813878,0.00041095,120]
[339639600,1727787001726,-158.82776029,0.00041095,120]
[339639601,1727787001750,-515.42689168,0.00041095,30]
[339639602,1727787001775,-200.0,0.00041096,60]
[339639603,1727787001800,-150.72322581,0.000411,120]
[339639604,1727787001826,-152.1,0.00041123,30]
[339639605,1727787001851,-151.0,0.00041151,120]
[339639606,1727787001877,-4163.53545824,0.0004118,120]
[339639607,1727787001902,-65123.2541,0.000412,120]
[339639608,1727787001927,-500.0,0.00041211,30]
[339639609,1727787001953,-150.0,0.00041253,120]
[339639610,1727787001978,-12797.2,0.00041347,117]
[339639611,1727787002001,-2000000.0,0.000414,30]
[339639612,1727787002025,-6293.41778982,0.000415,60]
[339639613,1727787002050,-841202.24480354,0.000415,120]
[339639614,1727787005008,-150.0,0.00041095,120]
[339639615,1727787005046,-1200.0,0.00041507,120]
[339639616,1727787005072,-5443.06070516,0.00041534,120]
[339639617,1727787005099,-999.0,0.00041643,120]
[339639618,1727787005125,-150.0,0.0004179,120]
[339639619,1727787005151,-52590.9343827,0.000418,120]
[339639620,1727787005176,-156.9084,0.00041888,30]
[339639621,1727787005202,-150.0,0.00041895,120]
[339639622,1727787005232,-150.0,0.00041895,120]
[339639623,1727787005257,-263.3,0.000419,120]
[339639624,1727787005282,-1000.0,0.00041999,120]
[339639625,1727787005312,-50000.0,0.00042,32]
[339639626,1727787005341,-50000.0,0.00042,42]
[339639627,1727787005367,-1173.83032668,0.00042,120]
[339639628,1727787005393,-1000.0,0.00042,120]
[339639629,1727787005419,-150.0,0.00042,30]
[339639630,1727787005445,-150.0,0.00042,120]
[339639631,1727787005474,-2288916.99019056,0.00042,30]
[339639632,1727787005500,-5679.43575413,0.00042,120]
[339639633,1727787005527,-10000.0,0.00042,120]
[339639634,1727787005553,-50000.0,0.00042,30]
[339639635,1727787005580,-3295.17202492,0.00042,120]
[339639636,1727787005607,-1000.0,0.00042,120]
[339639637,1727787005634,-10000.0,0.00042,120]
[339639638,1727787005659,-2350.0,0.00042,120]
[339639639,1727787005684,-18439.73955334,0.00042,30]
[339639640,1727787005712,-7965.92913188,0.00042,30]
[339639641,1727787005737,-5471.45,0.00042,60]
[339639642,1727787005764,-10000.0,0.00042,30]
[339639643,1727787005788,-121345.51272652,0.00042,120]
[339639644,1727787005815,-2216.675831,0.00042,120]
[339639645,1727787005841,-583.2552618,0.00042,120]
[339639646,1727787005867,-162.08433607,0.00042,120]
[339639647,1727787005893,-562.08518241,0.00042,120]
[339639648,1727787005918,-250.0,0.00042,30]
[339639649,1727787005944,-28232.8191,0.0004208,120]
[339639650,1727787005972,-151.0,0.00042164,120]
[339639651,1727787005999,-500.0,0.00042307,30]
[339639652,1727787006027,-434.6460931,0.0004246,120]
[339639653,1727787006053,-50000.0,0.000425,32]
[339639654,1727787006080,-999.0,0.00042739,120]
[339639655,1727787006105,-174.1,0.0004274,91]
[339639656,1727787006130,-4029.73738306,0.000428,60]
[339639657,1727787006154,-12262.3821572,0.00042898,90]
[339639658,1727787006179,-16945.19135017,0.00042898,90]
[339639659,1727787006206,-9686.08012557,0.00042898,120]
[339639660,1727787006231,-6081.73382067,0.000429,120]
[339639661,1727787006256,-33394.62463018,0.000429,30]
[339639662,1727787006281,-795.11984284,0.000429,60]
[339639663,1727787006305,-70709.4314147,0.000429,60]
[339639664,1727787006330,-310.51008849,0.000429,60]
[339639665,1727787006358,-50000.0,0.00043,33]
[339639666,1727787006387,-50000.0,0.00043,43]
[339639667,1727787006412,-6293.41778982,0.00043,60]
[339639668,1727787006438,-357.0,0.00043,120]
[339639669,1727787006465,-150.0,0.00043,120]
[339639670,1727787006493,-463.89172194,0.00043,30]
[339639671,1727787006521,-568.17723768,0.00043,30]
[339639672,1727787006548,-498.78494228,0.00043,30]
[339639673,1727787006575,-548.13357293,0.00043,30]
[339639674,1727787006602,-4031.07109345,0.00043,120]
[339639675,1727787006630,-4529.81433339,0.00043,30]
[339639676,1727787006657,-548.75028968,0.00043,30]
[339639677,1727787006685,-154539.04038706,0.00043,120]
[339639678,1727787006712,-513.5698131,0.00043,30]
[339639679,1727787006738,-582.60170106,0.00043,30]
[339639680,1727787006766,-513.07782026,0.00043,30]
[339639681,1727787006794,-469.82820273,0.00043,30]
[339639682,1727787006823,-6262.2868,0.00043,30]
[339639683,1727787006850,-1781458.81448147,0.00043,120]
[339639684,1727787010215,-580.76177467,0.00030613,30]
[339639685,1727787010257,-661288.93547825,0.00043,120]
[339639686,1727787010284,-572.76136051,0.00043,30]
[339639687,1727787010312,-492.21931962,0.00043,30]
[339639688,1727787010341,-568.18472207,0.00043,30]
[339639689,1727787010370,-546.49290273,0.00043,30]
[339639690,1727787010398,-543.03545723,0.00043,30]
[339639691,1727787010426,-1050.09470707,0.00043,30]
[339639692,1727787010452,-451.78660504,0.00043,30]
[339639693,1727787010619,-522.29008892,0.00043,30]
[339639694,1727787010646,-10000.0,0.00043,120]
[339639695,1727787010675,-1000.0,0.00043,120]
[339639696,1727787010701,-604.94083396,0.00043,30]
[339639697,1727787010730,-532.60159357,0.00043,30]
[339639698,1727787010757,-60000.0,0.00043,120]
[339639699,1727787010782,-50000.0,0.00043,31]
[339639700,1727787010807,-20000.0,0.00043,120]
[339639701,1727787010834,-1408861.21955363,0.00043,30]
[339639702,1727787010860,-419.13106184,0.00043,30]
[339639703,1727787010885,-505.59526948,0.00043,30]
[339639704,1727787010911,-70000.0,0.00043,30]
[339639705,1727787010938,-43132.54374699,0.00043,120]
[339639706,1727787010966,-564.83202437,0.00043,30]
[339639707,1727787010993,-4876.76118925,0.00043,120]
[339639708,1727787011018,-10301.36351864,0.00043,120]
[339639709,1727787011046,-620.19908854,0.00043,30]
[339639710,1727787011073,-10116.93232342,0.00043,120]
[339639711,1727787011101,-185.16,0.00043014,120]
[339639712,1727787011127,-151.0,0.00043178,120]
[339639713,1727787011153,-164.67818247,0.000432,30]
[339639714,1727787011180,-1222.51528755,0.000432,120]
[339639715,1727787011207,-604.442085,0.0004327,120]
[339639716,1727787011244,-458.02450938,0.000433,120]
[339639717,1727787011271,-2000000.0,0.000434,120]
[339639718,1727787011296,-455.41846774,0.00043403,30]
[339639719,1727787011323,-50000.0,0.000435,33]
[339639720,1727787011348,-25000.0,0.000436,60]
[339639721,1727787011375,-5526.70405647,0.000437,120]
[339639722,1727787011402,-11588.312294,0.000437,90]
[339639723,1727787011430,-12169.58830476,0.000437,60]
[339639724,1727787011459,-465.61737516,0.000438,30]
[339639725,1727787011486,-5000.0,0.000438,30]
[339639726,1727787011517,-999.0,0.00043835,120]
[339639727,1727787011543,-200.0,0.00043836,60]
[339639728,1727787013207,800.0,0.0004,120]
[339639729,1727787015916,500.0,0.00021999,120]
[339639730,1727787016187,500.0,0.00021999,120]
[339639731,1727787016254,600.0,0.00041722,30]
[339639732,1727787016502,500.0,0.00021999,120]
[339639733,1727787016772,500.0,0.00021999,120]
[339639734,1727787016870,600.0,0.00042544,30]
[339639735,1727787017058,500.0,0.00021999,120]
[339639736,1727787017319,500.0,0.00021999,120]
[339639737,1727787017587,500.0,0.00021999,120]
[339639738,1727787017857,600.0,0.00042818,30]
[339639739,1727787017887,500.0,0.00021999,120]
[339639740,1727787018160,500.0,0.00021999,120]
[339639741,1727787018426,500.0,0.00021999,120]
[339639742,1727787018465,600.0,0.0004364,30]
[339639743,1727787018720,500.0,0.00021999,120]
[339639744,1727787019039,500.0,0.00021999,120]
[339639745,1727787019323,500.0,0.00021999,120]
[339639746,1727787019580,500.0,0.00021999,120]
[339639747,1727787019859,500.0,0.00021999,120]
[339639748,1727787020170,500.0,0.00021999,120]
[339639749,1727787020648,455.76969152,0.00021999,120]
[339639751,1727787022956,500.0,0.00021999,120]
[339639752,1727787023037,248.04018665,0.00021999,120]
[339639753,1727787023225,500.0,0.00021999,120]
[339639754,1727787023483,500.0,0.00021999,120]
[339639755,1727787023770,500.0,0.00021999,120]
[339639756,1727787024076,500.0,0.00021999,120]
[339639757,1727787024335,500.0,0.00021999,120]
[339639758,1727787024594,500.0,0.00021999,120]
[339639759,1727787024839,500.0,0.00021999,120]
[339639760,1727787025128,500.0,0.00021999,120]
[339639762,1727787025537,203.50193376,0.00021999,120]
[339639763,1727787025599,500.0,0.00021999,120]
[339639764,1727787025857,500.0,0.00021999,120]
[339639765,1727787027458,500.0,0.00021999,120]
[339639766,1727787027750,500.0,0.00021999,120]
[339639767,1727787028038,500.0,0.00021999,120]
[339639768,1727787028328,500.0,0.00021999,120]
[339639769,1727787028579,500.0,0.00021999,120]
[339639770,1727787028934,598.77412909,0.00021999,120]
[339639771,1727787029538,500.0,0.00021999,120]
[339639772,1727787029852,501.50217384,0.00021999,120]
[339639777,1727787032808,500.0,0.00021999,120]
[339639778,1727787033420,500.0,0.00021999,120]
[339639779,1727787033697,500.0,0.00021999,120]
[339639780,1727787033953,500.0,0.00021999,120]
[339639781,1727787034245,500.0,0.00021999,120]
[339639782,1727787034363,-344.02,0.0001006,2]
[339639783,1727787034373,-250.0,0.0001014,2]
[339639784,1727787034382,-107.89395584,0.00010166,2]
[339639785,1727787034474,-657.2017464,0.00010166,2]
[339639788,1727787034649,500.0,0.00021999,120]
[339639811,1727787034924,500.0,0.00021999,120]
[339639812,1727787035211,500.0,0.00021999,120]
[339639813,1727787035466,500.0,0.00021999,120]
[339639814,1727787035818,500.0,0.00021999,120]
[339639815,1727787036086,500.0,0.00021999,120]
[339639816,1727787036344,500.0,0.00021999,120]
[339639817,1727787036763,500.0,0.00021999,120]
[339639818,1727787036893,500.0,0.00021999,120]
[339639819,1727787037029,393.58174527,0.00021999,120]
[339639820,1727787037189,500.0,0.00021999,120]
[339639822,1727787037478,175.999997,0.00021999,120]
[339639823,1727787037737,-860.26073221,0.00010166,2]
[339639824,1727787037747,-150.0,0.00010166,2]
[339639825,1727787037756,-150.0,0.00010183,2]
[339639826,1727787037765,-1000.0,0.00010186,2]
[339639827,1727787037774,-150.0,0.000102,2]
[339639828,1727787037783,-150.0,0.00010217,2]
[339639829,1727787037792,-150.0,0.00010368,2]
[339639830,1727787037801,-150.0,0.0001042,2]
[339639831,1727787037812,-633.02,0.00010477,2]
[339639832,1727787037821,-419.2,0.00010604,2]
[339639833,1727787037831,-820.148,0.00010899,2]
[339639834,1727787037840,-619.50178666,0.00010899,2]
[339639835,1727787037850,-619.50178664,0.000109,2]
[339639836,1727787037860,-160.05472107,0.000109,2]
[339639837,1727787037870,-619.50178664,0.000109,2]
[339639838,1727787037880,-178.8,0.00010959,2]
[339639839,1727787037889,-166.56,0.00010959,2]
[339639840,1727787037898,-162.61,0.00010959,2]
[339639841,1727787037907,-247.17,0.00010959,2]
[339639842,1727787037917,-205.98,0.00010959,2]
[339639843,1727787037926,-171.65,0.00010959,2]
[339639844,1727787037935,-858.26,0.00010959,2]
[339639845,1727787037944,-500.0,0.00010973,2]
[339639846,1727787037954,-500.0,0.00010973,2]
[339639847,1727787037963,-150.0,0.00010991,2]
[339639848,1727787037974,-2796.8015085,0.00010992,2]
[339639849,1727787037983,-500.0,0.00010998,2]
[339639850,1727787037992,-516.85873265,0.00010998,2]
[339639851,1727787038001,-210.0925852,0.00010998,2]
[339639852,1727787038011,-622.43603892,0.00010998,2]
[339639853,1727787038020,-377.016,0.00010998,2]
[339639854,1727787038030,-539.0,0.00010999,2]
[339639855,1727787038039,-7048.89641877,0.00010999,2]
[339639856,1727787038051,-32019.09010202,0.00010999,2]
[339639857,1727787038061,-463.4202856,0.00010999,2]
[339639858,1727787038072,-1379.86572107,0.00010999,2]
[339639860,1727787038083,-749.86877271,0.00010999,2]
[339639861,1727787038094,-2570.50200004,0.00010999,2]
[339639862,1727787038105,-757932.31384339,0.00010999,2]
[339639863,1727787038116,-3413.85644702,0.00010999,2]
[339639864,1727787038127,-4032.83102732,0.00010999,2]
[339639865,1727787038138,-3411.05043,0.00010999,2]
[339639866,1727787038149,-1000.16274379,0.00010999,2]
[339639867,1727787038161,-3326.9924595,0.00010999,2]
[339639868,1727787038702,500.0,0.00021999,120]
[339639869,1727787038979,500.0,0.00021999,120]
[339639870,1727787039270,500.0,0.00021999,120]
[339639872,1727787039667,500.0,0.00021999,120]
[339639876,1727787040036,500.0,0.00021999,120]
[339639877,1727787040076,500.0,0.00021999,120]
[339639878,1727787040251,417.86048412,0.00021999,120]
[339639879,1727787040408,500.0,0.00021999,120]
[339639880,1727787040730,500.0,0.00021999,120]
[339639881,1727787041041,500.0,0.00021999,120]
[339639882,1727787041319,500.0,0.00021999,120]
[339639883,1727787041601,500.0,0.00021999,120]
[339639884,1727787041896,500.0,0.00021999,120]
[339639885,1727787042166,500.0,0.00021999,120]
[339639887,1727787042486,500.0,0.00021999,120]
[339639890,1727787042756,500.0,0.00021999,120]
[339639891,1727787042774,-10512.0,0.00010999,2]
[339639892,1727787042786,-268664.85946598,0.00010999,2]
[339639893,1727787042797,-1220797.39100927,0.00010999,2]
[339639894,1727787042809,-120376.14242137,0.00010999,2]
[339639895,1727787042921,-43422.4606353,0.00010999,2]
[339639896,1727787042932,-28037.08867211,0.00010999,2]
[339639897,1727787042944,-36320.53279676,0.00010999,2]
[339639898,1727787042979,-2487.38421878,0.00010999,2]
[339639899,1727787043179,525.08082832,0.00021999,120]
[339639900,1727787043195,-647.03681964,0.00010999,2]
[339639901,1727787043206,-352.96318036,0.00010999,2]
[339639902,1727787043218,-1500.0,0.00010999,2]
[339639903,1727787043233,-1037.58496612,0.00010999,2]
[339639904,1727787043244,-18880.23350409,0.00010999,2]
[339639971,1727787045627,-1429.02069593,0.00010999,2]
[339639972,1727787045639,-353.68141749,0.00010999,2]
[339639976,1727787045684,-27526.82046743,0.00010999,2]
[339639977,1727787045698,-2052.06145871,0.00010999,2]
[339639978,1727787045709,-500.0,0.00010999,2]
[339639979,1727787045723,-3007.05789495,0.00010999,2]
[339639980,1727787045738,-430.18684934,0.00010999,2]
[339639981,1727787045751,-663.02749647,0.00010999,2]
[339639982,1727787045770,-3518.04920049,0.00010999,2]
[339639983,1727787045781,-47896.35310452,0.00010999,2]
[339639984,1727787045792,-11258.983078,0.00010999,2]
[339639985,1727787045804,-1295.87497203,0.00010999,2]
[339639986,1727787045817,-82538.7704699,0.00010999,2]
[339639987,1727787045829,-16153.49979463,0.00010999,2]
[339639988,1727787045842,-5163.11011669,0.00010999,2]
[339639989,1727787045854,-506.28464956,0.00010999,2]
[339639990,1727787045866,-1613.48867776,0.00010999,2]
[339639991,1727787045877,-3701.92517562,0.00010999,2]
[339639992,1727787045888,-78312.49128101,0.00010999,2]
[339639993,1727787045899,-474.70594152,0.00010999,2]
[339639994,1727787045915,-4404.63009482,0.00010999,2]
[339639995,1727787045926,-716.16506598,0.00010999,2]
[339639996,1727787045938,-11753.76194839,0.00010999,2]
[339639997,1727787045950,-7533.79919372,0.00010999,2]
[339639998,1727787045962,-1604.42066588,0.00010999,2]
[339639999,1727787045976,-33666.64341342,0.00010999,2]
[339640000,1727787045989,-1580.85761632,0.00010999,2]
[339640001,1727787046000,-1421.4756318,0.00010999,2]
[339640002,1727787046012,-609.53823585,0.00010999,2]
[339640003,1727787046023,-5143.26,0.00010999,2]
[339640005,1727787046034,-553.56974129,0.00010999,2]
[339640006,1727787059010,500.0,0.00021999,120]
[339640007,1727787059294,500.95,0.00021999,120]
[339640008,1727787059336,500.0,0.00021999,120]
[339640009,1727787059562,500.95,0.00021999,120]
[339640010,1727787059603,500.0,0.00021999,120]
[339640011,1727787059825,500.95,0.00021999,120]
[339640012,1727787059908,500.0,0.00021999,120]
[339640013,1727787060094,500.95,0.00021999,120]
[339640014,1727787060499,310.24517023,0.00021999,120]
[339640015,1727787060541,500.95,0.00021999,120]
[339640016,1727787060718,500.95,0.00021999,120]
[339640017,1727787061039,500.95,0.00021999,120]
[339640018,1727787061454,500.95,0.00021999,120]
[339640019,1727787061887,500.95,0.00021999,120]
[339640020,1727787062162,500.95,0.00021999,120]
[339640021,1727787062472,500.95,0.00021999,120]
[339640022,1727787062750,500.95,0.00021999,120]
[339640023,1727787063030,500.95,0.00021999,120]
[339640024,1727787063328,500.95,0.00021999,120]
[339640025,1727787063860,500.95,0.00021999,120]
[339640026,1727787064324,500.95,0.00021999,120]
[339640027,1727787064604,500.95,0.00021999,120]
[339640028,1727787064881,500.95,0.00021999,120]
[339640029,1727787065181,500.95,0.00021999,120]
[339640030,1727787065574,500.95,0.00021999,120]
[339640031,1727787065871,500.95,0.00021999,120]
[339640032,1727787066206,500.95,0.00021999,120]
[339640033,1727787066490,500.95,0.00021999,120]
[339640034,1727787066891,501.02431574,0.00021999,120]
[339640035,1727787100547,500.0,0.00021999,120]
[339640036,1727787100822,500.0,0.00021999,120]
[339640037,1727787101103,500.0,0.00021999,120]
[339640038,1727787101411,500.0,0.00021999,120]
[339640039,1727787101694,500.0,0.00021999,120]
[339640040,1727787101994,500.0,0.00021999,120]
[339640041,1727787102227,500.0,0.00021999,120]
[339640042,1727787102528,502.20634341,0.00021999,120]
[339640043,1727787104629,500.0,0.00021999,120]
[339640044,1727787104811,223.02995066,0.00021999,120]
[339640045,1727787104921,500.0,0.00021999,120]
[339640046,1727787105284,500.0,0.00021999,120]
[339640047,1727787105525,500.0,0.00021999,120]
[339640048,1727787105695,500.0,0.00021999,120]
[339640049,1727787105799,500.0,0.00021999,120]
[339640050,1727787105981,500.0,0.00021999,120]
[339640051,1727787106028,298.279362,0.00021999,120]
[339640052,1727787106093,500.0,0.00021999,120]
[339640053,1727787106231,500.0,0.00021999,120]
[339640054,1727787106434,500.0,0.00021999,120]
[339640055,1727787106515,500.0,0.00021999,120]
[339640056,1727787106725,500.0,0.00021999,120]
[339640057,1727787106805,500.0,0.00021999,120]
[339640058,1727787107001,500.0,0.00021999,120]
[339640059,1727787107098,500.0,0.00021999,120]
[339640060,1727787107281,500.0,0.00021999,120]
[339640061,1727787107553,500.0,0.00021999,120]
[339640062,1727787107600,183.48039571,0.00021999,120]
[339640063,1727787107823,500.0,0.00021999,120]
[339640064,1727787108097,500.0,0.00021999,120]
[339640065,1727787108368,500.0,0.00021999,120]
[339640066,1727787108645,500.0,0.00021999,120]
[339640067,1727787108900,500.0,0.00021999,120]
[339640068,1727787109157,500.0,0.00021999,120]
[339640069,1727787109451,500.0,0.00021999,120]
[339640070,1727787109717,500.0,0.00021999,120]